{"text_format":"1","workbook":"xlsx","n_sheets":9,"sheets":["表紙","目次 (4)","4-1","4‐1‐1","4‐1‐2","4-1-3","4-2","4-2-1","1-1-12"],"not_rendered":{"charts":0,"images":0,"macros":1,"external_links":1,"defined_names":156,"comments":0,"pivot_tables":0},"unopened":[],"bounds":{"document_bytes":16777216,"sheet_cells":100000,"rows_first":2000,"rows_last":500,"rows_between":2000,"halvings":0,"cell_chars":16384,"cell_head_chars":4096},"cells_cut":0,"cells_raw":0,"read":"whole","date_system":"1900"}

{"sheet":"表紙","index":0,"n_rows":64,"n_cols":1,"rows_kept":64,"cut":false,"hidden":false,"merged":[[28,0,28,7],[29,0,29,7],[30,0,30,7],[7,0,7,7],[8,0,8,7],[24,0,24,7],[25,0,25,7],[26,0,26,7],[27,0,27,7],[10,0,10,7]]}
[]
[]
[]
[]
[]
[]
[]
["令和４年度"]
["大正区事業・業務計画書"]
[]
["４　活力ある元気なまちへ"]
[]
[]
[]
[]
[]
[]
[]
[]
[]
[]
[]
[]
[]
[]
[]
[]
["大　阪　市　大　正　区"]
[]
["令和４年４月１日　策定"]
[]
[]
[]
[]
["「大正区将来ビジョン」「事業・業務計画書」の概要及び位置づけについて"]
[]
[]
[]
[]
[]
[]
[]
[]
[]
[]
[]
[]
[]
[]
[]
[]
[]
[]
[]
[]
[]
[]
[]
[]
["本書の構成について"]
[]
["　　本書では、大正区将来ビジョン５つの柱にそって、事業・業務計画を体系化するため、"]
["　５つの柱を構成する各施策を１つの単位とし、事業・業務計画を紐付けております。"]
["　また、５つの柱に該当しない、いわゆる内部事務のような事務は、その他に集約しています。"]

{"sheet":"目次 (4)","index":1,"n_rows":17,"n_cols":15,"rows_kept":17,"cut":false,"hidden":false,"merged":[[8,0,8,3],[6,4,7,4],[6,5,7,5],[6,6,7,6],[6,7,7,7],[6,8,7,8],[6,9,6,12],[6,13,6,14],[3,0,3,12],[4,0,4,12],[5,0,5,12]]}
["令和４年度大正区事業・業務計画書　一覧（目次）"]
[]
["【表の記載項目】"]
["・修正箇所：令和４年度事業・業務計画書の当初からの修正箇所がある場合、○を記載しております。"]
["・スケジュール：○（予定通り進捗）、△（一部進捗に遅れ）、×（計画の変更を必要とするほど進捗の遅れ）、－（該当する項目なし）"]
["・自己評価：　◎：目標値を大幅に上回り達成（目標数値の+10%以上）、〇：目標値を達成（目標数値の0%以上～+10%未満）\n　　　　　　　　　△：目標値を下回り未達成（目標数値の－10%以上～0%未満）、×：目標値を大幅に下回り未達成（目標数値の－10%未満）"]
[null,null,null,null,"ﾍﾟｰｼﾞ","重複\n番号","新規","担当課","修正箇所","スケジュール",null,null,null,"自己評価"]
[null,null,null,null,null,null,null,null,null,"4～6月","7～9月","10～12月","1～3月","業績目標","成果目標"]
["「大正区将来ビジョン」「事業・業務計画書」の概要及び位置づけについて",null,null,null,1]
["本書の構成について",null,null,null,2]
["４","活力ある元気なまちへ"]
[null,"4-1","まちの活性化",null,1]
[null,null,"4-1-1",{"$f":"'4‐1‐1'!E2","v":"「TUGBOAT_TAISHO」運営事業"},{"$f":"E12+1","v":2},null,null,"地域協働課\n（地域協働）",null,{"$f":"'4‐1‐1'!$AC$34","v":"〇"},{"$f":"'4‐1‐1'!$AC$37","v":"〇"},{"$f":"'4‐1‐1'!$AC$40","v":"〇"},{"$f":"'4‐1‐1'!$AC$43","v":"〇"},{"$f":"'4‐1‐1'!$AD$70","v":"〇"},{"$f":"'4‐1‐1'!$AD$73","v":"◎"}]
[null,null,"4-1-2",{"$f":"'4‐1‐2'!E2","v":"公民連携の促進"},{"$f":"E13+2","v":4},null,null,"地域協働課\n（地域協働）",null,{"$f":"'4‐1‐2'!$AC$34","v":"〇"},{"$f":"'4‐1‐2'!$AC$37","v":"〇"},{"$f":"'4‐1‐2'!$AC$40","v":"〇"},{"$f":"'4‐1‐2'!$AC$43","v":"〇"},{"$f":"'4‐1‐2'!$AD$70","v":"〇"},{"$f":"'4‐1‐2'!$AD$73","v":"〇"}]
[null,null,"4-1-3",{"$f":"'4-1-3'!E2","v":"エリア価値の向上に向けた地域活性化事業"},{"$f":"E14+2","v":6},"5-1-13","〇","地域協働課\n（地域協働）","○",{"$f":"'4-1-3'!$AC$34","v":"×"},{"$f":"'4-1-3'!$AC$37","v":"〇"},{"$f":"'4-1-3'!$AC$40","v":"〇"},{"$f":"'4-1-3'!$AC$43","v":"〇"},{"$f":"'4-1-3'!$AD$70","v":"〇"},{"$f":"'4-1-3'!$AD$73","v":"◎"}]
[null,"4-2","ものづくり企業の活性化",null,{"$f":"E15+2","v":8}]
[null,null,"4-2-1",{"$f":"'4-2-1'!E2","v":"ものづくり企業連携事業"},{"$f":"E16+1","v":9},null,"〇","地域協働課\n（地域協働）","○",{"$f":"'4-2-1'!$AC$34","v":"〇"},{"$f":"'4-2-1'!$AC$37","v":"〇"},{"$f":"'4-2-1'!$AC$40","v":"〇"},{"$f":"'4-2-1'!$AC$43","v":"〇"},{"$f":"'4-2-1'!$AD$70","v":"×"},{"$f":"'4-2-1'!$AD$73","v":"△"}]

{"sheet":"4-1","index":2,"n_rows":27,"n_cols":5,"rows_kept":27,"cut":false,"hidden":false,"merged":[[25,2,25,3],[25,4,25,9],[26,2,26,3],[26,4,26,9],[23,2,23,3],[23,4,23,9],[24,2,24,3],[24,4,24,9]]}
["【4】活力ある元気なまちへ"]
[]
[null,"4-1　まちの活性化"]
[]
[null,"◆","目指すべき将来像"]
[]
[]
[]
[]
[]
[null,"◆","施策"]
[]
[]
[]
[]
[]
[null,"◆","施策目標"]
[]
[]
[]
[]
[]
[null,"◆","具体的取組（事業・業務計画書）"]
[null,null,"取組番号",null,"事業名"]
[null,null,"4-1-1",null,{"$f":"'目次 (4)'!D13","v":"「TUGBOAT_TAISHO」運営事業"}]
[null,null,"4-1-2",null,{"$f":"'目次 (4)'!D14","v":"公民連携の促進"}]
[null,null,"4-1-3",null,{"$f":"'目次 (4)'!D15","v":"エリア価値の向上に向けた地域活性化事業"}]

{"sheet":"4‐1‐1","index":3,"n_rows":90,"n_cols":34,"rows_kept":90,"cut":false,"hidden":false,"merged":[[89,0,89,3],[89,4,89,31],[80,0,83,6],[80,7,83,31],[85,0,87,3],[85,4,85,7],[85,8,85,31],[86,4,86,7],[86,8,86,31],[87,4,87,7],[87,8,87,31],[77,0,79,6],[77,7,79,31],[67,0,67,6],[67,7,67,31],[68,0,71,3],[68,4,71,6],[68,7,71,19],[68,20,71,28],[68,29,68,31],[69,29,71,31],[66,0,66,6],[66,7,66,31],[57,1,61,6],[57,7,61,31],[62,1,62,6],[62,7,62,31],[63,1,63,6],[63,7,63,31],[72,0,76,3],[72,4,76,6],[72,7,76,19],[72,20,76,28],[72,29,76,31],[53,7,53,31],[54,1,54,6],[54,7,54,31],[55,1,55,6],[55,7,55,31],[56,1,56,6],[56,7,56,31],[49,0,65,0],[49,1,49,6],[49,7,49,31],[50,1,50,6],[50,7,50,31],[51,1,51,6],[51,7,51,31],[52,1,52,6],[52,7,52,31],[53,1,53,6],[64,1,64,6],[64,7,64,31],[65,1,65,6],[65,7,65,31],[45,0,46,1],[45,2,46,31],[47,0,47,6],[47,7,47,31],[48,0,48,6],[48,7,48,31],[39,0,41,1],[39,2,41,23],[39,24,41,27],[39,28,41,29],[39,30,41,31],[42,0,44,1],[42,2,44,23],[42,24,44,27],[42,28,44,29],[42,30,44,31],[33,0,35,1],[33,2,35,23],[33,24,35,27],[33,28,35,29],[33,30,35,31],[36,0,38,1],[36,2,38,23],[36,24,38,27],[36,28,38,29],[36,30,38,31],[29,0,29,23],[29,24,29,27],[29,28,29,29],[29,30,29,31],[30,0,32,0],[30,1,32,1],[30,2,32,23],[30,24,32,27],[30,28,32,29],[30,30,32,31],[20,0,27,0],[20,1,20,6],[20,7,20,31],[21,1,23,6],[21,7,23,31],[24,1,26,6],[24,7,26,31],[27,1,27,6],[27,7,27,31],[5,33,7,34],[9,1,16,6],[9,7,16,31],[17,1,17,6],[17,7,17,31],[18,1,18,6],[18,7,18,31],[4,0,4,6],[4,7,4,31],[5,0,19,0],[5,1,8,6],[5,7,8,31],[19,1,19,6],[19,7,19,31],[0,0,0,3],[0,4,0,20],[0,21,0,27],[0,28,0,29],[0,30,0,31],[1,4,2,20],[1,21,2,27],[1,28,2,29],[1,30,2,31],[1,0,2,3]]}
["取組番号",null,null,null,"事業名",null,null,null,null,null,null,null,null,null,null,null,null,null,null,null,null,"作成年月日・担当",null,null,null,null,null,null,"重点",null,"新規"]
[{"$f":"RIGHT(CELL(\"filename\",A4),LEN(CELL(\"filename\",A4))-FIND(\"]\",CELL(\"filename\",A4)))","v":"4‐1‐1"},null,null,null,"「TUGBOAT_TAISHO」運営事業",null,null,null,null,null,null,null,null,null,null,null,null,null,null,null,null,"令和4年4月1日\n地域協働課(地域協働)"]
[]
[]
["項目",null,null,null,null,null,null,"内容"]
["事業・業務概要","目的\n（事業の背景を含む）",null,null,null,null,null,"貴重な地域資源である尻無川河川広場を「にぎわい創造拠点」と位置付け、区民はもとより観光客などの来訪者の憩いの場となるとともに、本市観光施策における新たな観光資源として位置づけられた舟運事業の実施により、川と海をつなぎ、さらに水辺とまちをつなぐキ－ステ－ションとして観光客や内陸部の資源との連動や誘引を積極的に行うなど、中長期的に水辺からまち全体を活性化する。",null,null,null,null,null,null,null,null,null,null,null,null,null,null,null,null,null,null,null,null,null,null,null,null,null,"一覧へ戻る"]
[]
[]
[]
[null,"内容",null,null,null,null,null,"尻無川河川広場において、事業者の整備・運営する飲食店舗や宿泊施設等を有する「TUGBOAT _TAISHO」（令和元度開業）について、区役所は当該広場の占用等にかかる行政事務手続きの後方支援や同所において事業者が開催するにぎわい創出イベントの広報協力等を行う。\n区内企業や地域等との連携を区役所から提案し、マッチングのうえ実施する。\n開催にあたっては広報紙やSNS等の区役所の広報媒体等を活用し、広く周知を行う。\n災害時等における外国人を含む同所来場者の避難誘導等に関して、地域の防災計画に基づいて防災訓練を実施し、当該訓練についてＰＤＣＡサイクルをまわす。\n同所における集客状況やイベントの実施等、適宜、事業者の運営状況を把握するとともに、事業者による来場者に対するアンケートを実施し、得られた情報をもとに事業者と連携のうえ来場者の把握や分析を行う。\n必要に応じて、各地域活動協議会や区政会議等において、地域の意見を聴取し、当該意見を運営に反映する。"]
[]
[]
[]
[]
[]
[]
[]
[null,"予算額（予算科目）",null,null,null,null,null,"7,449千円（使用料）　※同額の歳入あり"]
[null,"事業実施期間（回数）",null,null,null,null,null,"通年"]
[null,"事業対象者（人数）",null,null,null,null,null,"-"]
["委託関係","契約・入札方法",null,null,null,null,null,"公募型プロポーザル（H２８）"]
[null,"募集要項のポイント"]
[]
[]
[null,"仕様書のポイント"]
[]
[]
[null,"選考委員等選考方式"]
[]
["スケジュール（実施決裁、入札募集開始、説明会、選考会、事業の実施　等）",null,null,null,null,null,null,null,null,null,null,null,null,null,null,null,null,null,null,null,null,null,null,null,"広報スケジュール",null,null,null,"スケ",null,"作業"]
["（前年度）","1月～3月","随時：広報協力\n　　　　　事業展開に関する関係機関（大阪府西大阪治水事務所等）との協議等",null,null,null,null,null,null,null,null,null,null,null,null,null,null,null,null,null,null,null,null,null,null,null,null,null,"〇",null,"〇"]
[]
[]
["4月～\n6月",null,"随時：広報協力\n　　　　事業展開に関する関係機関（大阪府西大阪治水事務所等）との協議等\n　　　　区内企業・地域等との連携取組について内容検討、連携先との調整",null,null,null,null,null,null,null,null,null,null,null,null,null,null,null,null,null,null,null,null,null,null,null,null,null,"〇",null,"〇"]
[]
[]
["7月～\n9月",null,"随時：広報協力及び\n　　　　事業展開に関する関係機関（大阪府西大阪治水事務所等）との協議等\n　　　　区内企業・地域等との連携取組の実施",null,null,null,null,null,null,null,null,null,null,null,null,null,null,null,null,null,null,null,null,null,null,null,null,null,"〇",null,"〇"]
[]
[]
["10月～\n12月",null,"随時：広報協力\n　　　　事業展開に関する関係機関（大阪府西大阪治水事務所等）との協議等\n　　　　区内企業・地域等との連携取組について内容検討、連携先との調整",null,null,null,null,null,null,null,null,null,null,null,null,null,null,null,null,null,null,null,null,null,null,null,null,null,"〇",null,"〇"]
[]
[]
["1月～\n3月",null,"１月：大阪府河川水辺の賑わいづくり審議会\n随時：広報協力\n　　　　事業展開に関する関係機関（大阪府西大阪治水事務所等）との協議等\n　　　　区内企業・地域等との連携取組の実施",null,null,null,null,null,null,null,null,null,null,null,null,null,null,null,null,null,null,null,null,null,null,null,null,null,"〇",null,"〇"]
[]
[]
["備考"]
[]
["項目",null,null,null,null,null,null,"内容"]
["講座・イベント・会議名",null,null,null,null,null,null,"各種イベント　※内容未定"]
["イベント等開催関係","開催日時",null,null,null,null,null,"未定"]
[null,"開催場所",null,null,null,null,null,"未定"]
[null,"区役所の主催等",null,null,null,null,null,"広報協力等"]
[null,"その他主催団体・組織等",null,null,null,null,null,"事業者（株式会社リタウン）等"]
[null,"共催団体・組織等",null,null,null,null,null,"―"]
[null,"後援団体・組織等",null,null,null,null,null,"―"]
[null,"目標事業規模",null,null,null,null,null,"―"]
[null,"その他留意事項",null,null,null,null,null,"―"]
[null,"イベント等\n当日タイムテーブル",null,null,null,null,null,"―"]
[]
[]
[]
[]
[null,"挨拶者",null,null,null,null,null,"―"]
[null,"来賓紹介",null,null,null,null,null,"―"]
[null,"祝電紹介の方法",null,null,null,null,null,"―"]
[null,"動員の方法",null,null,null,null,null,"―"]
["その他他課との連携等",null,null,null,null,null,null,"―"]
["前年度実績",null,null,null,null,null,null,"・にぎわい創造拠点施設を利用したことがある、または利用したいと思っている割合　61.3％（令和３年度）\n・地域と連動したイベント　令和3年度実績なし、広報紙掲載　０件、SNS　2件（令和３年度）"]
["業績目標",null,null,null,"実績",null,null,"地域と連動したイベント等を運営事業者と連携しながら実施し、イベントの広報活動を行う。\n広報紙、ＨＰ、ＳＮＳ等への掲載：２回/月\n区役所の関与した区内企業や地域との連携：２件",null,null,null,null,null,null,null,null,null,null,null,null,"地域と連動したイベント　２件\n広報紙掲載　９件",null,null,null,null,null,null,null,null,"自己評価"]
[null,null,null,null,null,null,null,null,null,null,null,null,null,null,null,null,null,null,null,null,null,null,null,null,null,null,null,null,null,"〇"]
[]
[]
["成果目標",null,null,null,"実績",null,null,"区民意識調査において、にぎわい創造拠点施設を利用したことがある、または利用したいと思っている割合：65％以上",null,null,null,null,null,null,null,null,null,null,null,null,0.71899999999999997,null,null,null,null,null,null,null,null,"◎"]
[]
[]
[]
[]
["中期展望",null,null,null,null,null,null,"河川広場で展開される事業を地域と連動し、地域のブランド力を向上させ、大正区全体に、そのにぎわい効果が浸透している状態。"]
[]
[]
["成果目標が\n中期展望に\n寄与する理由",null,null,null,null,null,null,"地域との連動した取組を実施し、そのブランド力を向上させるにあたり、まずは多くの方々にTUGBOAT_TAISHOを認知・来訪していただき、更には利用したいと思っていただくことが、地域のブランド力を向上させ、大正区全体にそのにぎわい効果の浸透につながることとなるため。"]
[]
[]
[]
[]
["SDGｓゴール",null,null,null,8,null,null,null,"働きがいも経済成長も"]
[null,null,null,null,9,null,null,null,"産業と技術革新の基盤をつくろう"]
[null,null,null,null,11,null,null,null,"住み続けられるまちづくりを"]
[]
["修正履歴"]

{"sheet":"4‐1‐2","index":4,"n_rows":90,"n_cols":34,"rows_kept":90,"cut":false,"hidden":false,"merged":[[89,0,89,3],[89,4,89,31],[80,0,83,6],[80,7,83,31],[85,0,87,3],[85,4,85,7],[85,8,85,31],[86,4,86,7],[86,8,86,31],[87,4,87,7],[87,8,87,31],[77,0,79,6],[77,7,79,31],[67,0,67,6],[67,7,67,31],[68,0,71,3],[68,4,71,6],[68,7,71,19],[68,20,71,28],[68,29,68,31],[69,29,71,31],[66,0,66,6],[66,7,66,31],[57,1,61,6],[57,7,61,31],[62,1,62,6],[62,7,62,31],[63,1,63,6],[63,7,63,31],[72,0,76,3],[72,4,76,6],[72,7,76,19],[72,20,76,28],[72,29,76,31],[53,7,53,31],[54,1,54,6],[54,7,54,31],[55,1,55,6],[55,7,55,31],[56,1,56,6],[56,7,56,31],[49,0,65,0],[49,1,49,6],[49,7,49,31],[50,1,50,6],[50,7,50,31],[51,1,51,6],[51,7,51,31],[52,1,52,6],[52,7,52,31],[53,1,53,6],[64,1,64,6],[64,7,64,31],[65,1,65,6],[65,7,65,31],[45,0,46,1],[45,2,46,31],[47,0,47,6],[47,7,47,31],[48,0,48,6],[48,7,48,31],[39,0,41,1],[39,2,41,23],[39,24,41,27],[39,28,41,29],[39,30,41,31],[42,0,44,1],[42,2,44,23],[42,24,44,27],[42,28,44,29],[42,30,44,31],[33,0,35,1],[33,2,35,23],[33,24,35,27],[33,28,35,29],[33,30,35,31],[36,0,38,1],[36,2,38,23],[36,24,38,27],[36,28,38,29],[36,30,38,31],[29,0,29,23],[29,24,29,27],[29,28,29,29],[29,30,29,31],[30,0,32,0],[30,1,32,1],[30,2,32,23],[30,24,32,27],[30,28,32,29],[30,30,32,31],[20,0,27,0],[20,1,20,6],[20,7,20,31],[21,1,23,6],[21,7,23,31],[24,1,26,6],[24,7,26,31],[27,1,27,6],[27,7,27,31],[5,33,7,34],[9,1,16,6],[9,7,16,31],[17,1,17,6],[17,7,17,31],[18,1,18,6],[18,7,18,31],[4,0,4,6],[4,7,4,31],[5,0,19,0],[5,1,8,6],[5,7,8,31],[19,1,19,6],[19,7,19,31],[0,0,0,3],[0,4,0,20],[0,21,0,27],[0,28,0,29],[0,30,0,31],[1,4,2,20],[1,21,2,27],[1,28,2,29],[1,30,2,31],[1,0,2,3]]}
["取組番号",null,null,null,"事業名",null,null,null,null,null,null,null,null,null,null,null,null,null,null,null,null,"作成年月日・担当",null,null,null,null,null,null,"重点",null,"新規"]
[{"$f":"RIGHT(CELL(\"filename\",A4),LEN(CELL(\"filename\",A4))-FIND(\"]\",CELL(\"filename\",A4)))","v":"4‐1‐2"},null,null,null,"公民連携の促進",null,null,null,null,null,null,null,null,null,null,null,null,null,null,null,null,"令和4年4月1日\n地域協働課(地域協働)"]
[]
[]
["項目",null,null,null,null,null,null,"内容"]
["事業・業務概要","目的\n（事業の背景を含む）",null,null,null,null,null,"大正区のエリア価値の向上を図る上で、高齢化や医療・介護をはじめ、にぎわい創出や空き家の利活用などの様々な分野などにおいて、行政が担う役割と、それにかかるコストが日々増大している状況である。そこで、事業実施の主体となる民間企業等と大正区が連携し、持続可能な社会の実現に資する事業を実施できる体制を整え、民間活力を生かしたまちづくりを行う。",null,null,null,null,null,null,null,null,null,null,null,null,null,null,null,null,null,null,null,null,null,null,null,null,null,"一覧へ戻る"]
[]
[]
[]
[null,"内容",null,null,null,null,null,"区役所と民間企業等との連携の窓口となり、区役所全体の案件把握を行い、取組を促進する。\nまた、既に行っている連携について、必要に応じて連携内容を検討しながら継続する。\n\n※主な既存の連携\n・大正・港ものづくり事業実行委員会への事務局としての参画\n・山忠木材株式会社との連携でのきごころサロンまつりでの協働\n・（独法）都市再生機構と㈱フィルとの連携での大正クラフトライフマーケットでの協働\n・（独法）都市再生機構と㈱アイルとの連携した地域活性化\n・小川文化（ヨリドコ大正メイキン）を活用した地域活性化\n・区民協働（わがまちビジョン運営委員会）による魅力発信事業\n・（独）都市再生機構と連携した地域福祉の充実\n・NPO法人アズウィッシュとの地域福祉のまちづくり（発達障がい者への支援）\n・大正白稜高等学校との包括連携協定の締結\n・（株）RETOWNとの包括連携協定の締結\n・IKEA鶴浜との鶴町地域における地域活性化事業\n・泉建設（株）との空き家利活用の促進事業\n・吉本興業株式会社との包括連携協定に基づく、住みます芸人の活用"]
[]
[]
[]
[]
[]
[]
[]
[null,"予算額（予算科目）",null,null,null,null,null,"-"]
[null,"事業実施期間（回数）",null,null,null,null,null,"-"]
[null,"事業対象者（人数）",null,null,null,null,null,"-"]
["委託関係","契約・入札方法",null,null,null,null,null,"-"]
[null,"募集要項のポイント",null,null,null,null,null,"-"]
[]
[]
[null,"仕様書のポイント",null,null,null,null,null,"-"]
[]
[]
[null,"選考委員等選考方式",null,null,null,null,null,"-"]
[]
["スケジュール（実施決裁、入札募集開始、説明会、選考会、事業の実施　等）",null,null,null,null,null,null,null,null,null,null,null,null,null,null,null,null,null,null,null,null,null,null,null,"広報スケジュール",null,null,null,"スケ",null,"作業"]
["（前年度）","1月～3月","随時、外部との折衝、広報協力、連携を実施",null,null,null,null,null,null,null,null,null,null,null,null,null,null,null,null,null,null,null,null,null,null,null,null,null,"〇",null,"〇"]
[]
[]
["4月～\n6月",null,"随時、外部との折衝、広報協力、連携を実施",null,null,null,null,null,null,null,null,null,null,null,null,null,null,null,null,null,null,null,null,null,"随時",null,null,null,"〇",null,"〇"]
[]
[]
["7月～\n9月",null,"随時、外部との折衝、広報協力、連携を実施",null,null,null,null,null,null,null,null,null,null,null,null,null,null,null,null,null,null,null,null,null,"随時",null,null,null,"〇",null,"〇"]
[]
[]
["10月～\n12月",null,"随時、外部との折衝、広報協力、連携を実施",null,null,null,null,null,null,null,null,null,null,null,null,null,null,null,null,null,null,null,null,null,"随時",null,null,null,"〇",null,"〇"]
[]
[]
["1月～\n3月",null,"随時、外部との折衝、広報協力、連携を実施",null,null,null,null,null,null,null,null,null,null,null,null,null,null,null,null,null,null,null,null,null,"随時",null,null,null,"〇",null,"〇"]
[]
[]
["備考"]
[]
["項目",null,null,null,null,null,null,"内容"]
["講座・イベント・会議名",null,null,null,null,null,null,"―"]
["イベント等開催関係","開催日時",null,null,null,null,null,"―"]
[null,"開催場所",null,null,null,null,null,"―"]
[null,"区役所の主催等",null,null,null,null,null,"―"]
[null,"その他主催団体・組織等",null,null,null,null,null,"―"]
[null,"共催団体・組織等",null,null,null,null,null,"―"]
[null,"後援団体・組織等",null,null,null,null,null,"―"]
[null,"目標事業規模",null,null,null,null,null,"―"]
[null,"その他留意事項",null,null,null,null,null,"―"]
[null,"イベント等\n当日タイムテーブル",null,null,null,null,null,"―"]
[]
[]
[]
[]
[null,"挨拶者",null,null,null,null,null,"―"]
[null,"来賓紹介",null,null,null,null,null,"―"]
[null,"祝電紹介の方法",null,null,null,null,null,"―"]
[null,"動員の方法",null,null,null,null,null,"―"]
["その他他課との連携等",null,null,null,null,null,null,"―"]
["前年度実績",null,null,null,null,null,null,"・新たな公民連携関係の構築　0件\n・区民意識調査にて、企業が地域の活動に寄与していると感じている区民の割合：53.6％"]
["業績目標",null,null,null,"実績",null,null,"新たな公民連携関係の構築　1件以上",null,null,null,null,null,null,null,null,null,null,null,null,"新たな公民連携関係の構築\n２件　",null,null,null,null,null,null,null,null,"自己評価"]
[null,null,null,null,null,null,null,null,null,null,null,null,null,null,null,null,null,null,null,null,null,null,null,null,null,null,null,null,null,"〇"]
[]
[]
["成果目標",null,null,null,"実績",null,null,"区民意識調査にて、区役所と連携している民間企業等が、社会的に貢献していると回答した区民の割合：55％以上",null,null,null,null,null,null,null,null,null,null,null,null,0.56399999999999995,null,null,null,null,null,null,null,null,"〇"]
[]
[]
[]
[]
["中期展望",null,null,null,null,null,null,"区民がもつ課題に対し、行政で対応できないことを、民間企業等が事業実施の主体となり、民間ならではの活力を生かし、解決していくまちとなっている状態。"]
[]
[]
["成果目標が\n中期展望に\n寄与する理由",null,null,null,null,null,null,"区役所と連携している民間企業等が、社会的に貢献していると区民から認知・評価されることは、大正区が社会貢献に取り組みやすい環境であるという企業からの評価につながり、区内における企業等よる社会貢献活動が促進されることとなり、地域課題の解決につながるため。"]
[]
[]
[]
[]
["SDGｓゴール",null,null,null,17,null,null,null,"パートナーシップで目標を達成しよう"]
[null,null,null,null,null,null,null,null,{"$f":"+IF(ISERROR(VLOOKUP($E87,#REF!,2,0)),\"\",VLOOKUP($E87,#REF!,2,0))","v":""}]
[null,null,null,null,null,null,null,null,{"$f":"+IF(ISERROR(VLOOKUP($E88,#REF!,2,0)),\"\",VLOOKUP($E88,#REF!,2,0))","v":""}]
[]
["修正履歴"]

{"sheet":"4-1-3","index":5,"n_rows":90,"n_cols":34,"rows_kept":90,"cut":false,"hidden":false,"merged":[[89,0,89,3],[89,4,89,31],[80,0,83,6],[80,7,83,31],[85,0,87,3],[85,4,85,7],[85,8,85,31],[86,4,86,7],[86,8,86,31],[87,4,87,7],[87,8,87,31],[77,0,79,6],[77,7,79,31],[67,0,67,6],[67,7,67,31],[68,0,71,3],[68,4,71,6],[68,7,71,19],[68,20,71,28],[68,29,68,31],[69,29,71,31],[66,0,66,6],[66,7,66,31],[57,1,61,6],[57,7,61,31],[62,1,62,6],[62,7,62,31],[63,1,63,6],[63,7,63,31],[72,0,76,3],[72,4,76,6],[72,7,76,19],[72,20,76,28],[72,29,76,31],[53,7,53,31],[54,1,54,6],[54,7,54,31],[55,1,55,6],[55,7,55,31],[56,1,56,6],[56,7,56,31],[49,0,65,0],[49,1,49,6],[49,7,49,31],[50,1,50,6],[50,7,50,31],[51,1,51,6],[51,7,51,31],[52,1,52,6],[52,7,52,31],[53,1,53,6],[64,1,64,6],[64,7,64,31],[65,1,65,6],[65,7,65,31],[45,0,46,1],[45,2,46,31],[47,0,47,6],[47,7,47,31],[48,0,48,6],[48,7,48,31],[39,0,41,1],[39,2,41,23],[39,24,41,27],[39,28,41,29],[39,30,41,31],[42,0,44,1],[42,2,44,23],[42,24,44,27],[42,28,44,29],[42,30,44,31],[33,0,35,1],[33,2,35,23],[33,24,35,27],[33,28,35,29],[33,30,35,31],[36,0,38,1],[36,2,38,23],[36,24,38,27],[36,28,38,29],[36,30,38,31],[29,0,29,23],[29,24,29,27],[29,28,29,29],[29,30,29,31],[30,0,32,0],[30,1,32,1],[30,2,32,23],[30,24,32,27],[30,28,32,29],[30,30,32,31],[20,0,27,0],[20,1,20,6],[20,7,20,31],[21,1,23,6],[21,7,23,31],[24,1,26,6],[24,7,26,31],[27,1,27,6],[27,7,27,31],[5,33,7,34],[9,1,16,6],[9,7,16,31],[17,1,17,6],[17,7,17,31],[18,1,18,6],[18,7,18,31],[4,0,4,6],[4,7,4,31],[5,0,19,0],[5,1,8,6],[5,7,8,31],[19,1,19,6],[19,7,19,31],[0,0,0,3],[0,4,0,20],[0,21,0,27],[0,28,0,29],[0,30,0,31],[1,4,2,20],[1,21,2,27],[1,28,2,29],[1,30,2,31],[1,0,2,3]]}
["取組番号",null,null,null,"事業名",null,null,null,null,null,null,null,null,null,null,null,null,null,null,null,null,"作成年月日・担当",null,null,null,null,null,null,"重点",null,"新規"]
["4-1-3\n5-1-13",null,null,null,"エリア価値の向上に向けた地域活性化事業",null,null,null,null,null,null,null,null,null,null,null,null,null,null,null,null,"令和4年4月1日\n地域協働課(地域協働)",null,null,null,null,null,null,null,null,"〇"]
[]
[]
["項目",null,null,null,null,null,null,"内容"]
["事業・業務概要","目的\n（事業の背景を含む）",null,null,null,null,null,"大正区においては、自然動態（出生・死亡に伴う人口の動き）及び社会動態（転入、転出等に伴う人口の動き）ともに下降傾向となっており、人口は年々減少している。\nまた、この人口減少により、地域活動の担い手不足や空き家の増加等が顕著となっている状況である。\nこの状況を鑑み、これから大正区が人々の注目を集め、大正区・地域に関わりたくなるまちとなるよう、地域活性化事業によるエリア価値の向上をめざす。",null,null,null,null,null,null,null,null,null,null,null,null,null,null,null,null,null,null,null,null,null,null,null,null,null,"一覧へ戻る"]
[]
[]
[]
[null,"内容",null,null,null,null,null,"エリア価値向上について、代表的な取組パターンとしては次の①から④の取組がある。\n①公共空間の利活用\n道路、公園、河川空間など、誰でも利用することができる都市空間を居心地よく魅力あるものとして活用。\n②遊休不動産の再生\n空き家、空き店舗などの遊休不動産を活用し、地域のニーズに応じた様々な施設へとリノベーション。\n③コンテンツや事業の創出\n地域独自の資源を活かしたまちづくりのための人材の育成等の取組。\n④エリア環境の改善\n移動しやすい交通の確保、魅力を高める景観の整備などエリア環境の改善に向けた取組。\n①～④を実現するために、令和4年に実施する大正区政90周年のイベント（令和4年10月）を目途に社会実験として、景観等の整備を完了した千島公園（④の取組）及び周辺一帯を活用し、開催日を多くの人の記憶に残せるように、毎月決まった日に区役所が占用主体となって公園の通路やステージ等を活用した賑わいの創出を実施する（①の取組）。具体の取り組みとして、千島公園イベント広場「くさっパひろっパ」に完成したステージを有効活用したライブや漫才などのイベント、昭和山はなのみちでは飲食・休憩スペース等を設置、特色ある商品や飲食物のテイクアウト販売を行う。合わせて、不動産所有者や事業者と連携した空家相談や店舗探し、家探しができる取り組みを実施し、出店者や来場者へ大正区への出店、移住を促すための一助となる有効な情報を提供することにより区内外からの関心を集める（②の取組）。この賑わいの創出にあたっては、興味を持ち、自ら希望する区内の飲食店・物販店、ものづくり企業やRETOWN、WALPA、URなどが一定出店できるよう配慮し、これまである大正区独自の、あるいは新たに生み出す魅力を来場者へ印象づける（③の取組）。\nなお、本事業実施に際しては、企画・立案・実施する事業者を公募型プロポーザルにより募集する。\n社会実験の期間は令和4年10月～令和5年11月までとする。"]
[]
[]
[]
[]
[]
[]
[]
[null,"予算額（予算科目）",null,null,null,null,null,"53千円（報奨金）、3千円（役務費）、5,379千円（委託料）"]
[null,"事業実施期間（回数）",null,null,null,null,null,"令和4年10月から令和5年3月まで（毎月1回：全６回）"]
[null,"事業対象者（人数）",null,null,null,null,null,"約5000人"]
["委託関係","契約・入札方法",null,null,null,null,null,"公募型プロポーザル方式"]
[null,"募集要項のポイント",null,null,null,null,null,"・大正区独自の魅力を来場者へ印象づける企画の提案\n・空家相談、店舗探し、家探しができるブースの設置\n・集客が見込める飲食店（キッチンカー）・物販店の誘致\n・出店する店舗が利用するテントの購入　など"]
[]
[]
[null,"仕様書のポイント",null,null,null,null,null,"民間事業者の高いノウハウや経験、行政にはない新たな発想を持ち、エリア価値の向上につながる企画提案を求める。"]
[]
[]
[null,"選考委員等選考方式",null,null,null,null,null,"専門知識を持つ外部委員3名による選考会議にて選定"]
[]
["スケジュール（実施決裁、入札募集開始、説明会、選考会、事業の実施　等）",null,null,null,null,null,null,null,null,null,null,null,null,null,null,null,null,null,null,null,null,null,null,null,"広報スケジュール",null,null,null,"スケ",null,"作業"]
["（前年度）","1月～3月","事業者へヒアリング、募集要綱、仕様書作成。\n公園の使用について、建設局と調整。",null,null,null,null,null,null,null,null,null,null,null,null,null,null,null,null,null,null,null,null,null,null,null,null,null,"〇",null,"〇"]
[]
[]
["4月～\n6月",null,"【4月】実施決裁、募集開始\n【5月】委託事業者の選考\n【6月】委託契約締結（委託事業者の選定に至らず再募集）\n",null,null,null,null,null,null,null,null,null,null,null,null,null,null,null,null,null,null,null,null,null,"HPで募集案内を掲載",null,null,null,"×",null,"〇"]
[]
[]
["7月～\n9月",null,"【7月～9月】\n委託事業者の再選考\n委託契約締結\n事業実施に向けた調整",null,null,null,null,null,null,null,null,null,null,null,null,null,null,null,null,null,null,null,null,null,"広報紙、HP・SNS",null,null,null,"〇",null,"〇"]
[]
[]
["10月～\n12月",null,"【10月】事業実施（1回目）以後毎月1回実施（全6回）\n【10月～12月】\n予定どおり、マルシェ及び空家まち歩きを、10月23日、11月27日、12月25日に開催。",null,null,null,null,null,null,null,null,null,null,null,null,null,null,null,null,null,null,null,null,null,"毎月　広報紙、区HP・SNS",null,null,null,"〇",null,"〇"]
[]
[]
["1月～\n3月",null,"【1月～3月】\n予定どおり、マルシェ及び空家まち歩きを、1月22日、2月26日、3月26日に開催。",null,null,null,null,null,null,null,null,null,null,null,null,null,null,null,null,null,null,null,null,null,"毎月　広報紙、区HP・SNS",null,null,null,"〇",null,"〇"]
[]
[]
["備考"]
[]
["項目",null,null,null,null,null,null,"内容"]
["講座・イベント・会議名",null,null,null,null,null,null,"―"]
["イベント等開催関係","開催日時",null,null,null,null,null,"令和4年10月から令和5年3月まで（毎月1回：全６回）"]
[null,"開催場所",null,null,null,null,null,"千島公園及び周辺一帯"]
[null,"区役所の主催等",null,null,null,null,null,"主催"]
[null,"その他主催団体・組織等",null,null,null,null,null,"―"]
[null,"共催団体・組織等",null,null,null,null,null,"―"]
[null,"後援団体・組織等",null,null,null,null,null,"―"]
[null,"目標事業規模",null,null,null,null,null,"―"]
[null,"その他留意事項",null,null,null,null,null,"―"]
[null,"イベント等\n当日タイムテーブル",null,null,null,null,null,"―"]
[]
[]
[]
[]
[null,"挨拶者",null,null,null,null,null,"―"]
[null,"来賓紹介",null,null,null,null,null,"―"]
[null,"祝電紹介の方法",null,null,null,null,null,"―"]
[null,"動員の方法",null,null,null,null,null,"区広報紙、ホームページ、ポスター、チラシ等"]
["その他他課との連携等",null,null,null,null,null,null,"―"]
["前年度実績",null,null,null,null,null,null,"新規事業"]
["業績目標",null,null,null,"実績",null,null,"事業実施(10月)以後毎月1回、計6回実施",null,null,null,null,null,null,null,null,null,null,null,null,"予定通り毎月1回、計6回実施",null,null,null,null,null,null,null,null,"自己評価"]
[null,null,null,null,null,null,null,null,null,null,null,null,null,null,null,null,null,null,null,null,null,null,null,null,null,null,null,null,null,"〇"]
[]
[]
["成果目標",null,null,null,"実績",null,null,"・賑わい創出事業に参画した事業者のうち、事業継続を望むと答えた者：40％以上\n・賑わい創出事業に参加した来場者のうち、本事業がまちの魅力であり、まちの活性化にもつながっていると感じると答えた者の割合：40％以上",null,null,null,null,null,null,null,null,null,null,null,null,"・賑わい創出事業に参画した事業者のうち、事業継続を望むと答えた者：100％（全出店者）\n・賑わい創出事業に参加した来場者のうち、本事業がまちの魅力であり、まちの活性化にもつながっていると感じると答えた者の割合：96.9％",null,null,null,null,null,null,null,null,"◎"]
[]
[]
[]
[]
["中期展望",null,null,null,null,null,null,"大正区の強みが区内外を問わず広く認知されエリア価値が向上している状態。"]
[]
[]
["成果目標が\n中期展望に\n寄与する理由",null,null,null,null,null,null,"大正区が区民及び区民以外の人から住みたいまちとして認知されることは、暮らす場所として魅力的であるととらえられていることを示しており、ひいてはエリア価値の向上を示すこととなるため。"]
[]
[]
[]
[]
["SDGｓゴール",null,null,null,11,null,null,null,"住み続けられるまちづくりを"]
[null,null,null,null,17,null,null,null,"パートナーシップで目標を達成しよう"]
[null,null,null,null,null,null,null,null,""]
[]
["修正履歴",null,null,null,"スケジュールの修正"]

{"sheet":"4-2","index":6,"n_rows":25,"n_cols":5,"rows_kept":25,"cut":false,"hidden":false,"merged":[[23,2,23,3],[23,4,23,9],[24,2,24,3],[24,4,24,9]]}
["【4】活力ある元気なまちへ"]
[]
[null,"4-2　ものづくり企業の活性化"]
[]
[null,"◆","目指すべき将来像"]
[]
[]
[]
[]
[]
[null,"◆","施策"]
[]
[]
[]
[]
[]
[null,"◆","施策目標"]
[]
[]
[]
[]
[]
[null,"◆","具体的取組（事業・業務計画書）"]
[null,null,"取組番号",null,"事業名"]
[null,null,"4-2-1",null,{"$f":"'目次 (4)'!D17","v":"ものづくり企業連携事業"}]

{"sheet":"4-2-1","index":7,"n_rows":90,"n_cols":34,"rows_kept":90,"cut":false,"hidden":false,"merged":[[89,0,89,3],[89,4,89,31],[80,0,83,6],[80,7,83,31],[85,0,87,3],[85,4,85,7],[85,8,85,31],[86,4,86,7],[86,8,86,31],[87,4,87,7],[87,8,87,31],[77,0,79,6],[77,7,79,31],[67,0,67,6],[67,7,67,31],[68,0,71,3],[68,4,71,6],[68,7,71,19],[68,20,71,28],[68,29,68,31],[69,29,71,31],[66,0,66,6],[66,7,66,31],[57,1,61,6],[57,7,61,31],[62,1,62,6],[62,7,62,31],[63,1,63,6],[63,7,63,31],[72,0,76,3],[72,4,76,6],[72,7,76,19],[72,20,76,28],[72,29,76,31],[53,7,53,31],[54,1,54,6],[54,7,54,31],[55,1,55,6],[55,7,55,31],[56,1,56,6],[56,7,56,31],[49,0,65,0],[49,1,49,6],[49,7,49,31],[50,1,50,6],[50,7,50,31],[51,1,51,6],[51,7,51,31],[52,1,52,6],[52,7,52,31],[53,1,53,6],[64,1,64,6],[64,7,64,31],[65,1,65,6],[65,7,65,31],[45,0,46,1],[45,2,46,31],[47,0,47,6],[47,7,47,31],[48,0,48,6],[48,7,48,31],[39,0,41,1],[39,2,41,23],[39,24,41,27],[39,28,41,29],[39,30,41,31],[42,0,44,1],[42,2,44,23],[42,24,44,27],[42,28,44,29],[42,30,44,31],[33,0,35,1],[33,2,35,23],[33,24,35,27],[33,28,35,29],[33,30,35,31],[36,0,38,1],[36,2,38,23],[36,24,38,27],[36,28,38,29],[36,30,38,31],[29,0,29,23],[29,24,29,27],[29,28,29,29],[29,30,29,31],[30,0,32,0],[30,1,32,1],[30,2,32,23],[30,24,32,27],[30,28,32,29],[30,30,32,31],[20,0,27,0],[20,1,20,6],[20,7,20,31],[21,1,23,6],[21,7,23,31],[24,1,26,6],[24,7,26,31],[27,1,27,6],[27,7,27,31],[5,33,7,34],[9,1,16,6],[9,7,16,31],[17,1,17,6],[17,7,17,31],[18,1,18,6],[18,7,18,31],[4,0,4,6],[4,7,4,31],[5,0,19,0],[5,1,8,6],[5,7,8,31],[19,1,19,6],[19,7,19,31],[0,0,0,3],[0,4,0,20],[0,21,0,27],[0,28,0,29],[0,30,0,31],[1,4,2,20],[1,21,2,27],[1,28,2,29],[1,30,2,31],[1,0,2,3]]}
["取組番号",null,null,null,"事業名",null,null,null,null,null,null,null,null,null,null,null,null,null,null,null,null,"作成年月日・担当",null,null,null,null,null,null,"重点",null,"新規"]
[{"$f":"RIGHT(CELL(\"filename\",A4),LEN(CELL(\"filename\",A4))-FIND(\"]\",CELL(\"filename\",A4)))","v":"4-2-1"},null,null,null,"ものづくり企業連携事業",null,null,null,null,null,null,null,null,null,null,null,null,null,null,null,null,"令和4年4月1日\n地域協働課(地域協働)"]
[]
[]
["項目",null,null,null,null,null,null,"内容"]
["事業・業務概要","目的\n（事業の背景を含む）",null,null,null,null,null,"大正区内の高度な技術を有するオンリーワン企業や、創業から100年を迎える伝統のある企業が多く存在するというのは地域の最大の資源(強み)である。\nものづくりのまちとしての独自ネットワークを活用し、産業振興や人材の育成を通じて、地域課題の解決を図るとともに、世界や日本の繁栄に貢献するまちづくりに寄与することをめざす。",null,null,null,null,null,null,null,null,null,null,null,null,null,null,null,null,null,null,null,null,null,null,null,null,null,"一覧へ戻る"]
[]
[]
[]
[null,"内容",null,null,null,null,null,"大正区役所は、区内ものづくり企業等にて構成されている「大正・港ものづくり事業実行委員会」において、大正区長は委員として、大正区役所は事務局として次の事業に参画する。\n\n【連携事業】\n□医工福連携\n□ものづくりフェスタ\n□オープンファクトリー\n□工場見学\n\n【大正・港ものづくり実行委員会と区役所の関係性】\n　〇区役所の実行委員会への関わり方\n　　・大正区長：実行委員会委員\n　　・大正区役所：実行委員会事務局\n　〇区役所の実行委員としての役割\n　　・国・他都市・民間企業・学校・地域団体等との対外的な窓口・折衝・調整\n　　・区の施策として位置づけ、事業連携・協力\n　　・区広報媒体等を活用した広報・宣伝\n　　・場の提供\n　〇区役所の事務局としての役割\n　　・実行委員会等の開催に際した資料作成・委員等関係者との連絡調整・開催準備等\n　　・事業実施にかかる意見集約・事務局案等の作成\n　〇参画企業の役割\n　　・事業企画提案\n　　・事業実施に向けた事前準備、実施当日の実動\n\nなお、本実行委員会の事務局業務について、事務補助として会計年度任用職員を雇い入れることとしているが、当該雇い入れについては次のとおり段階的に削減する。\n　○会計年度任用職員雇い入れ（３事業：ものづくりフェスタ、大正・港オープンファクトリー、工場見学会）\n　　令和３年度　2か月×3事業　⇒　令和4年度　1ヶ月×3事業　⇒　令和５年度　なし"]
[]
[]
[]
[]
[]
[]
[]
[null,"予算額（予算科目）",null,null,null,null,null,"375千円（報酬）、53千円（費用弁償）、192千円（消耗品費）、63千円（通信運搬費）"]
[null,"事業実施期間（回数）",null,null,null,null,null,"-"]
[null,"事業対象者（人数）",null,null,null,null,null,"-"]
["委託関係","契約・入札方法",null,null,null,null,null,"-"]
[null,"募集要項のポイント",null,null,null,null,null,"-"]
[]
[]
[null,"仕様書のポイント",null,null,null,null,null,"-"]
[]
[]
[null,"選考委員等選考方式"]
[]
["スケジュール（実施決裁、入札募集開始、説明会、選考会、事業の実施　等）",null,null,null,null,null,null,null,null,null,null,null,null,null,null,null,null,null,null,null,null,null,null,null,"広報スケジュール",null,null,null,"スケ",null,"作業"]
["（前年度）","1月～3月","随時　[全事業]外部との折衝、広報協力、連携を実施\n　　　　[工場見学会]受付、実施、広報",null,null,null,null,null,null,null,null,null,null,null,null,null,null,null,null,null,null,null,null,null,null,null,null,null,"〇",null,"〇"]
[]
[]
["4月～\n6月",null,"随時　[全事業]外部との折衝、広報協力、連携を実施。\n　　　　[工場見学会]受付、実施、広報\n4月　大正・港ものづくり実行委員会\n　    [ものづくりフェスタ]企画会議の開催\n5月　[ものづくりフェスタ]企画会議の開催\n6月　[ものづくりフェスタ]企画会議の開催\n",null,null,null,null,null,null,null,null,null,null,null,null,null,null,null,null,null,null,null,null,null,null,null,null,null,"〇",null,"〇"]
[]
[]
["7月～\n9月",null,"随時　[全事業]外部との折衝、広報協力、連携を実施\n　　　　[工場見学会]受付、実施、広報\n10月7月　[ものづくりフェスタ]広報チラシの配布（全小中学校生）に変更\n12月8月　[ものづくりフェスタ]開催に変更\n9月　[オープンファクトリー]企画会議",null,null,null,null,null,null,null,null,null,null,null,null,null,null,null,null,null,null,null,null,null,"[ものづくりフェスタ]\n広報紙8月号、HP、SNS",null,null,null,"〇",null,"〇"]
[]
[]
["10月～\n12月",null,"10月　[ものづくりフェスタ]広報チラシの配布（全小中学校生）\n12月　[ものづくりフェスタ]開催\n随時　[全事業]]外部との折衝、広報協力、連携を実施\n　　　　[工場見学会]受付、実施、広報　\n12月　[オープンファクトリー]参加者募集\n11月　[オープンファクトリー]開催",null,null,null,null,null,null,null,null,null,null,null,null,null,null,null,null,null,null,null,null,null,"[オープンファクトリー]\n広報紙10月号、HP、SNS",null,null,null,"〇",null,"〇"]
[]
[]
["1月～\n3月",null,"１月　[オープンファクトリー]参加者募集\n２月　[オープンファクトリー]企画会議\n　　 　[オープンファクトリー]開催\n随時　[全事業]外部との折衝、広報協力、連携を実施\n　　　　[工場見学会]受付、実施、広報\n出展、協賛企業の募集",null,null,null,null,null,null,null,null,null,null,null,null,null,null,null,null,null,null,null,null,null,null,null,null,null,"〇",null,"〇"]
[]
[]
["備考",null,"ものづくりフェスタが8月開催予定が12月開催となった理由は、企画会議で屋外で開催する案が出て、8月は猛暑のため屋外での開催は難しいとなり、話し合った結果12月に開催することとしたため。"]
[]
["項目",null,null,null,null,null,null,"内容"]
["講座・イベント・会議名",null,null,null,null,null,null,"ものづくりフェスタ、大正・港オープンファクトリー、工場見学会"]
["イベント等開催関係","開催日時",null,null,null,null,null,"―"]
[null,"開催場所",null,null,null,null,null,"―"]
[null,"区役所の主催等",null,null,null,null,null,"実行委員会として参画（区長：委員、区役所：事務局）"]
[null,"その他主催団体・組織等",null,null,null,null,null,"大正・港ものづくり事業実行委員会"]
[null,"共催団体・組織等",null,null,null,null,null,"―"]
[null,"後援団体・組織等",null,null,null,null,null,"―"]
[null,"目標事業規模",null,null,null,null,null,"―"]
[null,"その他留意事項",null,null,null,null,null,"―"]
[null,"イベント等\n当日タイムテーブル",null,null,null,null,null,"―"]
[]
[]
[]
[]
[null,"挨拶者",null,null,null,null,null,"―"]
[null,"来賓紹介",null,null,null,null,null,"―"]
[null,"祝電紹介の方法",null,null,null,null,null,"―"]
[null,"動員の方法",null,null,null,null,null,"―"]
["その他他課との連携等",null,null,null,null,null,null,"―"]
["前年度実績",null,null,null,null,null,null,"[医工福連携]\n　広報紙掲載：２回以上、HP掲載：２回以上\n　「医工福」連携による取組が、区のブランド力の向上や区民の誇りになっていると答えた区民の割合：48.0％\n[ものづくりフェスタ]\n　WEB閲覧数：427件（令和３年度　3月～WEB開催）\n　企業が地域の活動に寄与していると感じている区民の割合　53.6％\n[オープンファクトリー]\n　参加者：未実施のため実績なし（令和３年度）※参考　令和元年度:145名　令和2年:未実施\n　オープンファクトリーを知っている区民の割合　31.1％\n[工場見学会]\n　見学会受入回数：２回（令和３年度）\n　受入人数：25名（令和３年度）\n　修学旅行向け工場見学会を知っている区民の割合：34.5％"]
["業績目標",null,null,null,"実績",null,null,"[医工福連携]\n　広報紙掲載：２回以上、HP掲載：２回以上\n[ものづくりフェスタ]\n　リアル開催来場者、WEB閲覧数：700件以上\n[オープンファクトリー]\n　参加者：　35名（規模縮小開催の場合）\n[工場見学会]\n　見学会受入回数：10回　受入人数：300名",null,null,null,null,null,null,null,null,null,null,null,null,"[医工福連携]\n　広報紙掲載：令和４年度２回\n[ものづくりフェスタ]\n　令和4年12月3日開催　参加者約500名\n[オープンファクトリー]\n令和5年2月実施　参加者98名\n令和4年5月実施　参加者45名\n[工場見学会]\n　見学会受入回数：５回\n　受入人数：164名\n",null,null,null,null,null,null,null,null,"自己評価"]
[null,null,null,null,null,null,null,null,null,null,null,null,null,null,null,null,null,null,null,null,null,null,null,null,null,null,null,null,null,"×"]
[]
[]
["成果目標",null,null,null,"実績",null,null,"[医工福連携]\n　「医工福」連携による取組が、区のブランド力の向上や区民の誇りになっていると答えた区民の割合：50％\n[ものづくりフェスタ]\n　企業が地域の活動に寄与していると感じている区民の割合　54％以上\n[オープンファクトリー]\n　オープンファクトリーを知っている区民の割合　32％以上\n[工場見学会]\n　修学旅行向け工場見学会を知っている区民の割合：35％以上",null,null,null,null,null,null,null,null,null,null,null,null,"[医工福連携]\n　74.2％　\n[ものづくりフェスタ]\n　51.3％　\n[オープンファクトリー]\n　70.0％　\n[工場見学会]\n　75.2％　",null,null,null,null,null,null,null,null,"△"]
[]
[]
[]
[]
["中期展望",null,null,null,null,null,null,"大正・港ものづくり事業実行委員会が、ものづくりのまちとしての独自ネットワークを活用し、産業振興や人材の育成を通じて、地域課題の解決を図るとともに、世界や日本の繁栄に貢献するまちづくりに寄与している状態。"]
[]
[]
["成果目標が\n中期展望に\n寄与する理由",null,null,null,null,null,null,"各種事業が区民に認知され、区のブランド力の向上や企業等による地域の活動への貢献が進むことは、大正区、ひいては、世界や日本の繁栄に貢献するまちづくりに寄与している状態の実現につながるため。"]
[]
[]
[]
[]
["SDGｓゴール",null,null,null,4,null,null,null,"質の高い教育をみんなに"]
[null,null,null,null,8,null,null,null,"働きがいも経済成長も"]
[null,null,null,null,9,null,null,null,"産業と技術革新の基盤をつくろう"]
[]
["修正履歴",null,null,null,"スケジュールの修正"]

{"sheet":"1-1-12","index":8,"n_rows":90,"n_cols":34,"rows_kept":90,"cut":false,"hidden":true,"merged":[[89,0,89,3],[89,4,89,31],[80,0,83,6],[80,7,83,31],[85,0,87,3],[85,4,85,7],[85,8,85,31],[86,4,86,7],[86,8,86,31],[87,4,87,7],[87,8,87,31],[77,0,79,6],[77,7,79,31],[67,0,67,6],[67,7,67,31],[68,0,71,3],[68,4,71,6],[68,7,71,19],[68,20,71,28],[68,29,68,31],[69,29,71,31],[66,0,66,6],[66,7,66,31],[57,1,61,6],[57,7,61,31],[62,1,62,6],[62,7,62,31],[63,1,63,6],[63,7,63,31],[72,0,76,3],[72,4,76,6],[72,7,76,19],[72,20,76,28],[72,29,76,31],[53,7,53,31],[54,1,54,6],[54,7,54,31],[55,1,55,6],[55,7,55,31],[56,1,56,6],[56,7,56,31],[49,0,65,0],[49,1,49,6],[49,7,49,31],[50,1,50,6],[50,7,50,31],[51,1,51,6],[51,7,51,31],[52,1,52,6],[52,7,52,31],[53,1,53,6],[64,1,64,6],[64,7,64,31],[65,1,65,6],[65,7,65,31],[45,0,46,1],[45,2,46,31],[47,0,47,6],[47,7,47,31],[48,0,48,6],[48,7,48,31],[39,0,41,1],[39,2,41,23],[39,24,41,27],[39,28,41,29],[39,30,41,31],[42,0,44,1],[42,2,44,23],[42,24,44,27],[42,28,44,29],[42,30,44,31],[33,0,35,1],[33,2,35,23],[33,24,35,27],[33,28,35,29],[33,30,35,31],[36,0,38,1],[36,2,38,23],[36,24,38,27],[36,28,38,29],[36,30,38,31],[29,0,29,23],[29,24,29,27],[29,28,29,29],[29,30,29,31],[30,0,32,0],[30,1,32,1],[30,2,32,23],[30,24,32,27],[30,28,32,29],[30,30,32,31],[20,0,27,0],[20,1,20,6],[20,7,20,31],[21,1,23,6],[21,7,23,31],[24,1,26,6],[24,7,26,31],[27,1,27,6],[27,7,27,31],[5,33,7,34],[9,1,16,6],[9,7,16,31],[17,1,17,6],[17,7,17,31],[18,1,18,6],[18,7,18,31],[2,0,2,3],[3,0,3,3],[4,0,4,6],[4,7,4,31],[5,0,19,0],[5,1,8,6],[5,7,8,31],[19,1,19,6],[19,7,19,31],[0,0,0,3],[0,4,0,20],[0,21,0,27],[0,28,0,29],[0,30,0,31],[1,0,1,3],[1,4,2,20],[1,21,2,27],[1,28,2,29],[1,30,2,31]]}
["取組番号",null,null,null,"事業名",null,null,null,null,null,null,null,null,null,null,null,null,null,null,null,null,"作成年月日・担当",null,null,null,null,null,null,"重点",null,"新規"]
["保福7",null,null,null,"福祉課題の解決に向けた地域による自律的な話し合いへの支援\n小学校区福祉委員会（仮称）の設置及び運営支援",null,null,null,null,null,null,null,null,null,null,null,null,null,null,null,null,"令和3年8月1日\n保健福祉課（福祉）"]
["令和３年度取組番号"]
["1-1-12"]
["項目",null,null,null,null,null,null,"内容"]
["事業・業務概要","目的\n（事業の背景を含む）",null,null,null,null,null,"地域団体等による福祉課題の解決に向けた自律的な話し合いの場を設けるために必要な支援を行うことで、大正区地域福祉ビジョンがめざす「だれもが自分らしく安心して暮らし続けられる地域づくり」の推進に寄与する。",null,null,null,null,null,null,null,null,null,null,null,null,null,null,null,null,null,null,null,null,null,null,null,null,null,"一覧へ戻る"]
[]
[]
[]
[null,"内容",null,null,null,null,null,"大正区役所、大正区社会福祉協議会、関係機関と連携し、地域団体等による自律的な話し合いの場を設けるために必要な支援を行う。\n「区政会議」をはじめとする会議体への報告等に必要な支援を行う。\n・地域への意向調査\n・関係部署・関係機関等との連絡調整\n・資料準備・作成\n・話し合いへの参加（福祉Ｇ、区社協、関係部署・機関等）\n・その他必要な支援"]
[]
[]
[]
[]
[]
[]
[]
[null,"予算額（予算科目）",null,null,null,null,null,"－"]
[null,"事業実施期間（回数）",null,null,null,null,null,"令和4年4月1日～令和5年3月31日"]
[null,"事業対象者（人数）",null,null,null,null,null,"地域団体など"]
["委託関係","契約・入札方法",null,null,null,null,null,"－"]
[null,"募集要項のポイント",null,null,null,null,null,"－"]
[]
[]
[null,"仕様書のポイント",null,null,null,null,null,"－"]
[]
[]
[null,"選考委員等選考方式",null,null,null,null,null,"－"]
[]
["スケジュール（実施決裁、入札募集開始、説明会、選考会、事業の実施　等）",null,null,null,null,null,null,null,null,null,null,null,null,null,null,null,null,null,null,null,null,null,null,null,"広報スケジュール",null,null,null,"スケ",null,"作業"]
["（前年度）","1月～3月","【随時】\n・地域への意向確認、関係部署・関係機関等との連絡調整、資料準備・作成、話し合いへの参加、その他必要な支援"]
[]
[]
["4月～\n6月",null,"【随時】\n・地域への意向確認、関係部署・関係機関等との連絡調整、資料準備・作成、話し合いへの参加、その他必要な支援"]
[]
[]
["7月～\n9月",null,"【随時】\n・地域への意向確認、関係部署・関係機関等との連絡調整、資料準備・作成、話し合いへの参加、その他必要な支援"]
[]
[]
["10月～\n12月",null,"【随時】\n・地域への意向確認、関係部署・関係機関等との連絡調整、資料準備・作成、話し合いへの参加、その他必要な支援"]
[]
[]
["1月～\n3月",null,"【随時】\n・地域への意向確認、関係部署・関係機関等との連絡調整、資料準備・作成、話し合いへの参加、その他必要な支援"]
[]
[]
["備考"]
[]
["項目",null,null,null,null,null,null,"内容"]
["講座・イベント・会議名"]
["イベント等開催関係","開催日時",null,null,null,null,null,"―"]
[null,"開催場所",null,null,null,null,null,"―"]
[null,"区役所の主催等",null,null,null,null,null,"―"]
[null,"その他主催団体・組織等",null,null,null,null,null,"地域団体"]
[null,"共催団体・組織等",null,null,null,null,null,"－"]
[null,"後援団体・組織等",null,null,null,null,null,"大正区役所、大正区社会福祉協議会、関係部署、関係機関"]
[null,"目標事業規模",null,null,null,null,null,"【地域住民】地域活動協議会"]
[null,"その他留意事項",null,null,null,null,null,"－"]
[null,"イベント等\n当日タイムテーブル",null,null,null,null,null,"―"]
[]
[]
[]
[]
[null,"挨拶者",null,null,null,null,null,"－"]
[null,"来賓紹介",null,null,null,null,null,"－"]
[null,"祝電紹介の方法",null,null,null,null,null,"－"]
[null,"動員の方法",null,null,null,null,null,"－"]
["その他他課との連携等",null,null,null,null,null,null,"―"]
["前年度実績",null,null,null,null,null,null,"なし"]
["業績目標",null,null,null,"実績",null,null,"地域団体等による自律的な地域福祉課題の解決に向けた話し合いの開催回数：年10回",null,null,null,null,null,null,null,null,null,null,null,null,null,null,null,null,null,null,null,null,null,"自己評価"]
[]
[]
[]
["成果目標",null,null,null,"実績",null,null,"区の支援が地域福祉課題の解決に役に立っていると感じる参加者の割合：60％以上。"]
[]
[]
[]
[]
["中期展望",null,null,null,null,null,null,"大正区地域福祉ビジョンがめざす「だれもが自分らしく安心して暮らし続けられる地域づくり」が充実・強化されている状態\n"]
[]
[]
["成果目標が\n中期展望に\n寄与する理由",null,null,null,null,null,null,"区の支援が地域福祉課題の解決に役に立っていると感じている参加者の割合が向上していることは、地域団体等による話し合いが地域福祉課題の解決に資することにより「だれもが自分らしく安心して暮らし続けられる地域づくり」の充実・強化にに寄与していると考えられるため\n"]
[]
[]
[]
[]
["SDGｓゴール",null,null,null,3,null,null,null,{"$f":"+IF(ISERROR(VLOOKUP($E86,[1]SDGｓ!$A$2:$B$18,2,0)),\"\",VLOOKUP($E86,[1]SDGｓ!$A$2:$B$18,2,0))","v":"すべての人に健康と福祉を"}]
[null,null,null,null,null,null,null,null,{"$f":"+IF(ISERROR(VLOOKUP($E87,[1]SDGｓ!$A$2:$B$18,2,0)),\"\",VLOOKUP($E87,[1]SDGｓ!$A$2:$B$18,2,0))","v":""}]
[null,null,null,null,null,null,null,null,{"$f":"+IF(ISERROR(VLOOKUP($E88,[1]SDGｓ!$A$2:$B$18,2,0)),\"\",VLOOKUP($E88,[1]SDGｓ!$A$2:$B$18,2,0))","v":""}]
[]
["修正履歴"]